fUSD/lending_fUSD_20250506
["ID","MTS","AMOUNT","RATE_DAILY","PERIOD"]
[360082765,1746543042373,-2960.21,0.00019998,2]
[360082767,1746543042383,-450.0,0.00019998,2]
[360082769,1746543042393,-562.23,0.00019998,2]
[360082770,1746543042402,-226.45,0.00019998,2]
[360082772,1746543042412,-645.43,0.00019998,2]
[360082774,1746543042422,-645.43,0.00019998,2]
[360082776,1746543042431,-513.31,0.00019998,2]
[360082778,1746543042440,-492.48,0.00019998,2]
[360082780,1746543042450,-492.48,0.00019998,2]
[360082783,1746543042460,-452.92,0.00019998,2]
[360082785,1746543042470,-500.0,0.00019999,2]
[360082787,1746543042479,-450.0,0.00019999,2]
[360082788,1746543042488,-450.0,0.00019999,2]
[360082790,1746543042497,-450.0,0.00019999,2]
[360082792,1746543042507,-450.0,0.00019999,2]
[360082794,1746543042516,-450.0,0.00019999,2]
[360082796,1746543042525,-450.0,0.00019999,2]
[360082798,1746543042534,-450.0,0.00019999,2]
[360082800,1746543042544,-450.0,0.00019999,2]
[360082802,1746543042553,-450.0,0.00019999,2]
[360082805,1746543042563,-182.37597749,0.00019999,2]
[360082806,1746543042572,-220.19,0.00019999,2]
[360082808,1746543042581,-500.0,0.00019999,2]
[360082810,1746543042590,-500.0,0.00019999,2]
[360082812,1746543042600,-500.0,0.00019999,2]
[360082814,1746543042609,-588.36303363,0.00019999,2]
[360082815,1746543042618,-151.0,0.00019999,2]
[360082816,1746543042627,-186.443593,0.00019999,2]
[360082817,1746543042636,-186.443593,0.00019999,2]
[360082818,1746543042645,-154.684887,0.00019999,2]
[360082819,1746543042655,-14731.37,0.00019999,2]
[360082820,1746543042663,-14731.37,0.00019999,2]
[360082821,1746543042672,-14731.37,0.00019999,2]
[360082822,1746543042683,-14731.37,0.00019999,2]
[360082823,1746543042692,-14731.37,0.00019999,2]
[360082824,1746543042702,-14731.37,0.00019999,2]
[360082825,1746543042711,-14731.37,0.00019999,2]
[360082826,1746543042721,-14731.37,0.00019999,2]
[360082827,1746543042730,-14731.37,0.00019999,2]
[360082830,1746543042740,-14731.37,0.00019999,2]
[360082831,1746543042749,-14731.37,0.00019999,2]
[360082832,1746543042758,-14731.37,0.00019999,2]
[360082834,1746543042767,-14731.37,0.00019999,2]
[360082836,1746543042776,-14731.37,0.00019999,2]
[360082838,1746543042786,-14731.37,0.00019999,2]
[360082841,1746543042796,-14731.37,0.00019999,2]
[360082844,1746543042805,-14731.37,0.00019999,2]
[360082846,1746543042815,-14731.37,0.00019999,2]
[360082848,1746543042824,-14731.37,0.00019999,2]
[360082851,1746543042834,-14731.37,0.00019999,2]
[360082854,1746543042845,-14731.48367332,0.00019999,2]
[360082857,1746543042854,-151.0,0.00019999,2]
[360082859,1746543042864,-151.0,0.00019999,2]
[360082861,1746543042873,-151.0,0.00019999,2]
[360082863,1746543042886,-151.0,0.00019999,2]
[360082865,1746543042895,-151.0,0.00019999,2]
[360082867,1746543042904,-151.32664,0.00019999,2]
[360082869,1746543042913,-271.780278,0.00019999,2]
[360082871,1746543042923,-450.0,0.00019999,2]
[360082873,1746543042933,-450.0,0.00019999,2]
[360082875,1746543042943,-450.0,0.00019999,2]
[360082877,1746543042952,-450.0,0.00019999,2]
[360082879,1746543042963,-450.0,0.00019999,2]
[360082881,1746543042972,-450.0,0.00019999,2]
[360082883,1746543042982,-519.65,0.00019999,2]
[360082885,1746543042991,-271.780278,0.00019999,2]
[360082887,1746543043001,-271.022054,0.00019999,2]
[360082889,1746543043011,-151.0,0.00019999,2]
[360082891,1746543043020,-177.130422,0.00019999,2]
[360082893,1746543043029,-271.022054,0.00019999,2]
[360082895,1746543043038,-308.84,0.00019999,2]
[360082897,1746543043048,-151.0,0.00019999,2]
[360082899,1746543043057,-151.0,0.00019999,2]
[360082901,1746543043067,-540.080197,0.00019999,2]
[360082903,1746543043077,-151.0,0.00019999,2]
[360082905,1746543043087,-540.080197,0.00019999,2]
[360082907,1746543043097,-391.81,0.00019999,2]
[360082909,1746543043106,-628.1,0.00019999,2]
[360082911,1746543043115,-628.1,0.00019999,2]
[360082913,1746543043124,-628.1,0.00019999,2]
[360082915,1746543043134,-628.1,0.00019999,2]
[360082917,1746543043143,-628.1,0.00019999,2]
[360082919,1746543043153,-628.1,0.00019999,2]
[360082921,1746543043162,-628.1,0.00019999,2]
[360082923,1746543043171,-628.1,0.00019999,2]
[360082925,1746543043181,-628.1,0.00019999,2]
[360082927,1746543043190,-628.1,0.00019999,2]
[360082929,1746543043200,-628.1,0.00019999,2]
[360082931,1746543043209,-628.1,0.00019999,2]
[360082933,1746543043219,-628.1,0.00019999,2]
[360082935,1746543043228,-628.1,0.00019999,2]
[360082937,1746543043237,-628.1,0.00019999,2]
[360082939,1746543043246,-628.1,0.00019999,2]
[360082941,1746543043256,-151.0,0.00019999,2]
[360082943,1746543043265,-628.1,0.00019999,2]
[360082945,1746543043275,-628.1,0.00019999,2]
[360082947,1746543043284,-628.3,0.00019999,2]
[360082949,1746543043293,-450.0,0.00019999,2]
[360082951,1746543043302,-450.0,0.00019999,2]
[360082953,1746543043312,-450.0,0.00019999,2]
[360082955,1746543043322,-450.0,0.00019999,2]
[360082957,1746543043331,-450.0,0.00019999,2]
[360082959,1746543043341,-450.0,0.00019999,2]
[360082961,1746543043350,-352.23439464,0.00019999,2]
[360082963,1746543043360,-450.0,0.00019999,2]
[360082965,1746543043369,-450.0,0.00019999,2]
[360082967,1746543043378,-470.14,0.00019999,2]
[360082969,1746543043387,-160.07149,0.00019999,2]
[360082971,1746543043397,-450.0,0.00019999,2]
[360082973,1746543043406,-450.0,0.00019999,2]
[360082975,1746543043415,-450.0,0.00019999,2]
[360082977,1746543043424,-450.0,0.00019999,2]
[360082979,1746543043434,-392.82,0.00019999,2]
[360082981,1746543043443,-4479.13,0.00019999,2]
[360082983,1746543043453,-4479.13,0.00019999,2]
[360082985,1746543043462,-4479.13,0.00019999,2]
[360082988,1746543043472,-4479.13,0.00019999,2]
[360082990,1746543043481,-4479.13,0.00019999,2]
[360082992,1746543043490,-4479.13,0.00019999,2]
[360082994,1746543043499,-4479.13,0.00019999,2]
[360082996,1746543043508,-4479.13,0.00019999,2]
[360082998,1746543043518,-4479.13,0.00019999,2]
[360083000,1746543043527,-4479.13,0.00019999,2]
[360083002,1746543043536,-523.41,0.00019999,2]
[360083004,1746543043545,-523.41,0.00019999,2]
[360083006,1746543043555,-4479.13,0.00019999,2]
[360083008,1746543043564,-523.41,0.00019999,2]
[360083010,1746543043573,-4479.13,0.00019999,2]
[360083011,1746543043582,-523.41,0.00019999,2]
[360083013,1746543043592,-4479.13,0.00019999,2]
[360083015,1746543043602,-523.41,0.00019999,2]
[360083017,1746543043612,-523.41,0.00019999,2]
[360083019,1746543043622,-4479.13,0.00019999,2]
[360083021,1746543043631,-4479.13,0.00019999,2]
[360083023,1746543043640,-523.41,0.00019999,2]
[360083025,1746543043650,-4479.13,0.00019999,2]
[360083027,1746543043659,-523.41,0.00019999,2]
[360083029,1746543043668,-523.41,0.00019999,2]
[360083031,1746543043677,-4479.13,0.00019999,2]
[360083033,1746543043686,-523.41,0.00019999,2]
[360083035,1746543043695,-4479.13,0.00019999,2]
[360083037,1746543043705,-523.41,0.00019999,2]
[360083039,1746543043714,-4479.13,0.00019999,2]
[360083041,1746543043723,-523.41,0.00019999,2]
[360083043,1746543043732,-4479.13,0.00019999,2]
[360083045,1746543043741,-523.41,0.00019999,2]
[360083047,1746543043750,-523.41,0.00019999,2]
[360083049,1746543043759,-4479.3681,0.00019999,2]
[360083051,1746543043768,-523.41,0.00019999,2]
[360083053,1746543043778,-523.41,0.00019999,2]
[360083055,1746543043787,-523.41,0.00019999,2]
[360083057,1746543043796,-523.41,0.00019999,2]
[360083059,1746543043805,-523.41,0.00019999,2]
[360083061,1746543043814,-523.41,0.00019999,2]
[360083063,1746543043823,-523.54000001,0.00019999,2]
[360083065,1746543043832,-151.0,0.00019999,2]
[360083067,1746543043841,-151.0,0.00019999,2]
[360083069,1746543043850,-151.0,0.00019999,2]
[360083071,1746543043859,-151.0,0.00019999,2]
[360083073,1746543043869,-450.0,0.00019999,2]
[360083075,1746543043881,-450.0,0.00019999,2]
[360083077,1746543043890,-450.0,0.00019999,2]
[360083079,1746543043900,-450.0,0.00019999,2]
[360083081,1746543043910,-450.0,0.00019999,2]
[360083083,1746543043919,-450.0,0.00019999,2]
[360083085,1746543043929,-450.0,0.00019999,2]
[360083087,1746543043938,-450.0,0.00019999,2]
[360083089,1746543043948,-450.0,0.00019999,2]
[360083091,1746543043957,-450.0,0.00019999,2]
[360083093,1746543043967,-450.0,0.00019999,2]
[360083095,1746543043977,-450.0,0.00019999,2]
[360083097,1746543043986,-450.0,0.00019999,2]
[360083099,1746543043995,-450.0,0.00019999,2]
[360083101,1746543044004,-393.86,0.00019999,2]
[360083103,1746543044013,-450.0,0.00019999,2]
[360083105,1746543044022,-450.0,0.00019999,2]
[360083107,1746543044032,-450.0,0.00019999,2]
[360083109,1746543044041,-450.0,0.00019999,2]
[360083111,1746543044050,-450.0,0.00019999,2]
[360083113,1746543044059,-450.0,0.00019999,2]
[360083115,1746543044068,-450.0,0.00019999,2]
[360083117,1746543044077,-450.0,0.00019999,2]
[360083119,1746543044088,-242.88,0.00019999,2]
[360083121,1746543044097,-2960.21,0.00019999,2]
[360083123,1746543044107,-2960.21,0.00019999,2]
[360083125,1746543044116,-2960.21,0.00019999,2]
[360083127,1746543044125,-2960.21,0.00019999,2]
[360083129,1746543044135,-2960.21,0.00019999,2]
[360083131,1746543044144,-2960.21,0.00019999,2]
[360083148,1746543044286,-2960.21,0.00019999,2]
[360083150,1746543044296,-2026.91315392,0.00019999,2]
[360083161,1746543044398,-450.0,0.00019897,2]
[360083163,1746543044407,-523.79631498,0.00019897,2]
[360083165,1746543044416,-450.0,0.00019998,2]
[360083167,1746543044425,-408.84,0.00019998,2]
[360083169,1746543044435,-933.29684608,0.00019999,2]
[360083171,1746543044445,-2960.21,0.00019999,2]
[360083173,1746543044454,-2960.21,0.00019999,2]
[360083175,1746543044463,-2960.21,0.00019999,2]
[360083177,1746543044473,-151.0,0.00019999,2]
[360083180,1746543044482,-2960.21,0.00019999,2]
[360083182,1746543044492,-2960.21,0.00019999,2]
[360083184,1746543044501,-2960.21,0.00019999,2]
[360083186,1746543044511,-2960.21,0.00019999,2]
[360083187,1746543044520,-2960.21,0.00019999,2]
[360083190,1746543044530,-2960.21,0.00019999,2]
[360083192,1746543044539,-2960.21,0.00019999,2]
[360083194,1746543044549,-2960.34016853,0.00019999,2]
[360083196,1746543044558,-645.43,0.00019999,2]
[360083198,1746543044568,-645.43,0.00019999,2]
[360083200,1746543044577,-151.0,0.00019999,2]
[360083202,1746543044588,-645.43,0.00019999,2]
[360083204,1746543044597,-645.43,0.00019999,2]
[360083206,1746543044606,-151.0,0.00019999,2]
[360083208,1746543044617,-645.43,0.00019999,2]
[360083210,1746543044626,-645.43,0.00019999,2]
[360083212,1746543044636,-645.43,0.00019999,2]
[360083214,1746543044646,-645.43,0.00019999,2]
[360083216,1746543044656,-645.43,0.00019999,2]
[360083218,1746543044665,-645.43,0.00019999,2]
[360083220,1746543044675,-645.43,0.00019999,2]
[360083222,1746543044685,-645.43,0.00019999,2]
[360083224,1746543044694,-645.43,0.00019999,2]
[360083226,1746543044706,-645.43,0.00019999,2]
[360083228,1746543044715,-645.43,0.00019999,2]
[360083230,1746543044725,-645.43,0.00019999,2]
[360083232,1746543044734,-151.0,0.00019999,2]
[360083234,1746543044743,-121.39028435,0.00019999,2]
[360083236,1746543044755,-524.03971565,0.00019999,2]
[360083238,1746543044765,-645.43,0.00019999,2]
[360083240,1746543044774,-139.91454043,0.00019999,2]
[360083395,1746543046105,-450.0,0.00019897,2]
[360083398,1746543046115,-213.16372602,0.00019897,2]
[360083401,1746543046129,-236.83627398,0.00019897,2]
[360083404,1746543046139,-11.08545957,0.00019999,2]
[360083407,1746543046149,-135.03426645,0.00019999,2]
[360083411,1746543046160,-510.39573355,0.00019999,2]
[360083414,1746543046170,-645.43,0.00019999,2]
[360083417,1746543046180,-645.43,0.00019999,2]
[360083419,1746543046192,-210.162848,0.00019999,2]
[360083422,1746543046201,-492.48,0.00019999,2]
[360083425,1746543046211,-492.48,0.00019999,2]
[360083428,1746543046221,-492.48,0.00019999,2]
[360083431,1746543046231,-492.48,0.00019999,2]
[360083434,1746543046240,-492.48,0.00019999,2]
[360083437,1746543046250,-492.48,0.00019999,2]
[360083440,1746543046259,-492.48,0.00019999,2]
[360083444,1746543046269,-492.48,0.00019999,2]
[360083447,1746543046278,-492.48,0.00019999,2]
[360083450,1746543046287,-492.48,0.00019999,2]
[360083452,1746543046297,-492.48,0.00019999,2]
[360083456,1746543046307,-492.48,0.00019999,2]
[360083459,1746543046317,-327.32141845,0.00019999,2]
[360083486,1746543046500,-165.15858155,0.00019999,2]
[360083487,1746543046510,-492.48,0.00019999,2]
[360083489,1746543046519,-492.48,0.00019999,2]
[360083491,1746543046529,-492.48,0.00019999,2]
[360083494,1746543046539,-408.40141845,0.00019999,2]
[360083612,1746543047682,-321.3908495,0.0001952,2]
[360083889,1746543053358,-62.5250505,0.0001952,2]
[360083890,1746543053741,136.99796345,0.00018864,2]
[360083891,1746543053766,16.23203655,0.00018864,2]
[360083892,1746543067504,4000.0,0.00019105,2]
[360083893,1746543104046,5991.64,0.00019055,2]
[360083894,1746543107522,1000.0,0.00018856,2]
[360083895,1746543163363,1155.34,0.00019178,2]
[360083896,1746543167754,500.0,0.00029589,30]
[360083897,1746543168017,500.0,0.00029863,35]
[360083898,1746543175265,211.83,0.00018864,2]
[360083900,1746543208144,158.46,0.00018864,2]
[360083901,1746543215845,500.0,0.00029589,30]
[360083902,1746543216110,500.0,0.00029863,30]
[360083903,1746543231700,4399.74,0.000195,2]
[360083904,1746543277377,735.45,0.00019003,2]
[360083916,1746543304866,1094.71,0.00017074,2]
[360083917,1746543305089,1094.71,0.00019338,2]
[360083918,1746543337550,23900.0,0.00019003,2]
[360083919,1746543413435,-249.642352,0.00019561,2]
[360083920,1746543532417,15981.91,0.00019128,2]
[360083921,1746543670509,500.0,0.0003013,120]
[360083922,1746543707205,500.0,0.00018934,2]
[360083923,1746543732200,1102.78,0.00018933,2]
[360083924,1746543769717,400.69471164,0.00019,2]
[360083925,1746543779570,2870.06,0.00018922,2]
[360083926,1746543789394,200.0,0.00019,2]
[360083927,1746543791787,200.0,0.0003,30]
[360083929,1746543815838,350.0,0.0003,60]
[360083930,1746543846445,189.43,0.00019003,2]
[360083931,1746543856856,-167.017648,0.0001956,2]
[360083932,1746543866456,-9.49517047,0.0001956,2]
[360083933,1746543930855,150.0,1e-08,2]
[360083934,1746543970042,2402.37,0.00018943,2]
[360083935,1746543984339,-164.06,0.000195,2]
[360083937,1746544127283,214.68816266,0.0003,30]
[360083940,1746544140993,250.0,0.00018858,2]
[360083941,1746544167157,888.0,0.0003,30]
[360083942,1746544171191,2020.75,0.00018859,2]
[360083943,1746544208309,1000.0,0.00018854,2]
[360083952,1746544232240,-441.23325091,0.000196,2]
[360083953,1746544232272,-17.94439709,0.000196,2]
[360083954,1746544232282,-200.0,0.000196,2]
[360083955,1746544232291,-150.0,0.000196,2]
[360083956,1746544232301,-131.83752406,0.00019607,2]
[360083957,1746544232312,-68.16247594,0.00019607,2]
[360083958,1746544232321,-250.0,0.00019615,2]
[360083959,1746544232331,-200.0,0.00019633,2]
[360083960,1746544232340,-211.69828521,0.00019659,2]
[360083961,1746544232350,-218.61411697,0.00019659,2]
[360083962,1746544232401,-981.38588303,0.00019659,2]
[360083963,1746544232410,-38.61411697,0.00019659,2]
[360084053,1746544238297,-261.38588303,0.00019659,2]
[360084054,1746544238309,-226.3,0.0001966,2]
[360084055,1746544238318,-500.0,0.0001966,2]
[360084056,1746544238327,-500.0,0.0001966,2]
[360084057,1746544238337,-375.06229879,0.0001966,2]
[360084058,1746544238347,-300.0,0.00019669,2]
[360084059,1746544238356,-150.0,0.00019733,2]
[360084060,1746544238365,-150.0,0.00019734,2]
[360084061,1746544238375,-150.0,0.00019735,2]
[360084062,1746544238384,-150.0,0.00019737,2]
[360084063,1746544238393,-150.0,0.0001974,2]
[360084064,1746544238402,-150.0,0.0001974,2]
[360084065,1746544238411,-150.0,0.00019744,2]
[360084066,1746544238420,-150.0,0.00019745,2]
[360084067,1746544238429,-150.0,0.00019748,2]
[360084068,1746544238438,-150.0,0.00019751,2]
[360084069,1746544238448,-150.0,0.00019755,2]
[360084070,1746544238457,-150.0,0.00019756,2]
[360084071,1746544238466,-150.0,0.00019756,2]
[360084072,1746544238476,-150.0,0.00019757,2]
[360084073,1746544238485,-150.0,0.00019759,2]
[360084074,1746544238494,-150.0,0.00019762,2]
[360084075,1746544238504,-150.0,0.00019762,2]
[360084076,1746544238513,-150.0,0.00019765,2]
[360084077,1746544238522,-150.0,0.00019765,2]
[360084078,1746544238531,-150.0,0.00019768,2]
[360084079,1746544238540,-150.0,0.00019768,2]
[360084080,1746544238550,-150.0,0.0001977,2]
[360084081,1746544238560,-150.0,0.00019772,2]
[360084083,1746544238569,-150.0,0.00019775,2]
[360084085,1746544238579,-150.0,0.00019775,2]
[360084087,1746544238589,-150.0,0.00019776,2]
[360084089,1746544238602,-150.0,0.00019779,2]
[360084090,1746544238611,-150.0,0.0001978,2]
[360084091,1746544238620,-150.0,0.0001978,2]
[360084092,1746544238630,-150.0,0.00019786,2]
[360084093,1746544238640,-207.4,0.00019786,2]
[360084094,1746544238650,-150.0,0.00019793,2]
[360084095,1746544238659,-150.0,0.00019795,2]
[360084096,1746544238670,-25974.367,0.00019798,2]
[360084097,1746544238679,-150.0,0.00019799,2]
[360084098,1746544238689,-150.0,0.00019799,2]
[360084099,1746544238698,-150.0,0.00019799,2]
[360084100,1746544238708,-150.0,0.00019799,2]
[360084101,1746544238717,-150.0,0.00019801,2]
[360084102,1746544238727,-150.0,0.00019801,2]
[360084103,1746544238736,-150.0,0.00019805,2]
[360084104,1746544238745,-150.0,0.00019811,2]
[360084105,1746544238754,-150.0,0.00019814,2]
[360084106,1746544238763,-150.0,0.00019816,2]
[360084107,1746544238773,-150.0,0.00019821,2]
[360084109,1746544238782,-150.0,0.00019822,2]
[360084111,1746544238791,-150.0,0.0001983,2]
[360084113,1746544238801,-150.0,0.00019831,2]
[360084115,1746544238811,-150.0,0.00019831,2]
[360084116,1746544238820,-150.0,0.00019836,2]
[360084118,1746544238829,-150.0,0.00019836,2]
[360084120,1746544238838,-150.0,0.00019845,2]
[360084123,1746544238847,-150.0,0.0001985,2]
[360084125,1746544238856,-150.0,0.00019851,2]
[360084128,1746544238866,-191.473384,0.00019852,2]
[360084131,1746544238875,-150.0,0.00019852,2]
[360084134,1746544238884,-594.246647,0.00019852,2]
[360084137,1746544238893,-150.0,0.00019857,2]
[360084138,1746544238902,-150.0,0.00019861,2]
[360084140,1746544238911,-150.0,0.00019861,2]
[360084142,1746544238920,-150.0,0.00019867,2]
[360084144,1746544238929,-150.0,0.00019868,2]
[360084145,1746544238938,-150.0,0.0001987,2]
[360084147,1746544238948,-150.0,0.0001987,2]
[360084149,1746544238957,-150.0,0.00019876,2]
[360084151,1746544238966,-150.0,0.00019877,2]
[360084153,1746544238975,-155.0,0.00019883,2]
[360084154,1746544238984,-150.0,0.00019884,2]
[360084156,1746544238993,-165.36177939,0.00019884,2]
[360084158,1746544239003,-151.0,0.00019884,2]
[360084160,1746544239012,-668.65185757,0.00019884,2]
[360084162,1746544239022,-285.66543986,0.00019886,2]
[360084164,1746544239031,-150.0,0.00019887,2]
[360084165,1746544239041,-150.0,0.00019887,2]
[360084167,1746544239050,-285.66543984,0.00019888,2]
[360084169,1746544239060,-150.99,0.00019888,2]
[360084171,1746544239069,-285.66543984,0.00019889,2]
[360084173,1746544239079,-285.66543984,0.00019891,2]
[360084174,1746544239088,-150.0,0.00019891,2]
[360084176,1746544239097,-150.0,0.00019891,2]
[360084178,1746544239107,-12500.0,0.00019891,2]
[360084180,1746544239116,-285.66543984,0.00019892,2]
[360084182,1746544239125,-285.66543984,0.00019894,2]
[360084183,1746544239134,-285.66543984,0.00019895,2]
[360084185,1746544239143,-285.66543984,0.00019897,2]
[360084187,1746544239152,-500.0,0.00019897,2]
[360084189,1746544239161,-450.0,0.00019897,2]
[360084190,1746544239170,-450.0,0.00019897,2]
[360084192,1746544239179,-450.0,0.00019897,2]
[360084194,1746544239188,-450.0,0.00019897,2]
[360084196,1746544239198,-450.0,0.00019897,2]
[360084198,1746544239207,-450.0,0.00019897,2]
[360084199,1746544239216,-490.0,0.00019897,2]
[360084201,1746544239225,-450.0,0.00019897,2]
[360084203,1746544239234,-450.0,0.00019897,2]
[360084205,1746544239243,-450.0,0.00019897,2]
[360084206,1746544239252,-450.0,0.00019897,2]
[360084208,1746544239262,-450.0,0.00019897,2]
[360084210,1746544239272,-484.85670702,0.00019897,2]
[360084212,1746544239281,-490.0,0.00019897,2]
[360084214,1746544239290,-470.0,0.00019897,2]
[360084215,1746544239299,-450.0,0.00019897,2]
[360084217,1746544239309,-450.0,0.00019897,2]
[360084219,1746544239319,-294.29828647,0.00019897,2]
[360084221,1746544239328,-189.88588058,0.00019897,2]
[360084222,1746544239337,-450.0,0.00019897,2]
[360084224,1746544239346,-450.0,0.00019897,2]
[360084226,1746544239355,-470.0,0.00019897,2]
[360084228,1746544239365,-450.0,0.00019897,2]
[360084230,1746544239374,-450.0,0.00019897,2]
[360084231,1746544239383,-450.0,0.00019897,2]
[360084233,1746544239393,-450.0,0.00019897,2]
[360084235,1746544239402,-450.0,0.00019897,2]
[360084237,1746544239412,-450.0,0.00019897,2]
[360084238,1746544239422,-470.0,0.00019897,2]
[360084240,1746544239431,-450.0,0.00019897,2]
[360084242,1746544239441,-450.0,0.00019897,2]
[360084244,1746544239450,-450.0,0.00019897,2]
[360084245,1746544239460,-450.0,0.00019897,2]
[360084247,1746544239469,-450.0,0.00019897,2]
[360084249,1746544239479,-450.0,0.00019897,2]
[360084251,1746544239488,-450.0,0.00019897,2]
[360084253,1746544239498,-450.0,0.00019897,2]
[360084255,1746544239507,-450.0,0.00019897,2]
[360084257,1746544239517,-450.0,0.00019897,2]
[360084259,1746544239526,-450.0,0.00019897,2]
[360084261,1746544239535,-450.0,0.00019897,2]
[360084263,1746544239544,-450.0,0.00019897,2]
[360084265,1746544239554,-450.0,0.00019897,2]
[360084267,1746544239566,-450.0,0.00019897,2]
[360084269,1746544239576,-450.0,0.00019897,2]
[360084271,1746544239585,-450.0,0.00019897,2]
[360084272,1746544239597,-409.80050933,0.00019897,2]
[360084273,1746544239607,-522.01192498,0.00019897,2]
[360084274,1746544239617,-450.0,0.00019897,2]
[360084275,1746544239626,-450.0,0.00019897,2]
[360084276,1746544239636,-450.0,0.00019897,2]
[360084277,1746544239646,-450.0,0.00019897,2]
[360084278,1746544239656,-296.8420366,0.00019897,2]
[360084279,1746544239666,-450.0,0.00019897,2]
[360084280,1746544239678,-232.84,0.00019897,2]
[360084281,1746544239688,-450.0,0.00019897,2]
[360084282,1746544239698,-450.0,0.00019897,2]
[360084283,1746544239709,-150.0,0.00019898,2]
[360084284,1746544239719,-285.66543984,0.00019898,2]
[360084285,1746544239729,-168.88878199,0.00019899,2]
[360084286,1746544239739,-500.0,0.00019899,2]
[360084287,1746544239749,-500.0,0.00019899,2]
[360084288,1746544239758,-500.0,0.00019899,2]
[360084289,1746544239768,-500.0,0.00019899,2]
[360084290,1746544239778,-500.0,0.00019899,2]
[360084291,1746544239787,-500.0,0.00019899,2]
[360084292,1746544239797,-500.0,0.00019899,2]
[360084293,1746544239809,-500.0,0.00019899,2]
[360084294,1746544239819,-500.0,0.00019899,2]
[360084295,1746544239829,-500.0,0.00019899,2]
[360084297,1746544239838,-500.0,0.00019899,2]
[360084298,1746544239848,-500.0,0.00019899,2]
[360084299,1746544239857,-500.0,0.00019899,2]
[360084301,1746544239867,-500.0,0.00019899,2]
[360084303,1746544239877,-500.0,0.00019899,2]
[360084305,1746544239888,-500.0,0.00019899,2]
[360084307,1746544239898,-500.0,0.00019899,2]
[360084309,1746544239907,-500.0,0.00019899,2]
[360084311,1746544239917,-500.0,0.00019899,2]
[360084313,1746544239926,-500.0,0.00019899,2]
[360084315,1746544239936,-500.0,0.00019899,2]
[360084317,1746544239946,-500.0,0.00019899,2]
[360084319,1746544239956,-500.0,0.00019899,2]
[360084321,1746544239965,-500.0,0.00019899,2]
[360084323,1746544239975,-500.0,0.00019899,2]
[360084325,1746544239985,-500.0,0.00019899,2]
[360084327,1746544239994,-500.0,0.00019899,2]
[360084329,1746544240004,-393.2432,0.00019899,2]
[360084331,1746544240013,-500.0,0.00019899,2]
[360084333,1746544240023,-500.0,0.00019899,2]
[360084335,1746544240033,-500.0,0.00019899,2]
[360084337,1746544240043,-500.0,0.00019899,2]
[360084339,1746544240052,-500.0,0.00019899,2]
[360084341,1746544240062,-500.0,0.00019899,2]
[360084343,1746544240072,-500.0,0.00019899,2]
[360084345,1746544240081,-500.0,0.00019899,2]
[360084347,1746544240091,-500.0,0.00019899,2]
[360084349,1746544240100,-500.0,0.00019899,2]